bitfinex/quotes_BTCUSD_20260221
["timestamp","ask_amount","ask_price","bid_price","bid_amount"]
[1771651368907,0.00036,67920.0,67914.0,0.07362252]
[1771651369108,0.00036,67920.0,67913.0,0.07362152]
[1771651378072,0.00036,67920.0,67913.0,0.07384152]
[1771651380278,0.07360951,67926.0,67917.0,0.07361897]
[1771651380495,0.07361166,67925.0,67916.0,0.07362011]
[1771651382329,0.07361168,67924.0,67916.0,0.07362011]
[1771651384444,0.0001231,67928.0,67915.0,0.02390854]
[1771651384669,0.0002861,67927.0,67923.0,0.07361203]
[1771651384856,0.0002861,67927.0,67922.0,0.07361186]
[1771651385061,0.0002861,67927.0,67923.0,0.07361208]
[1771651387569,0.0002861,67927.0,67924.0,0.07361162]
[1771651388730,0.0002861,67927.0,67923.0,0.07361241]
[1771651388925,0.09734208,67933.0,67925.0,0.07361053]
[1771651389973,0.09734208,67933.0,67924.0,0.07361137]
[1771651391954,0.07360308,67932.0,67923.0,0.07361257]
[1771651392193,0.07360424,67931.0,67923.0,0.07361257]
[1771651392544,0.0002,67927.0,67923.0,0.07361257]
[1771651393511,0.0002,67927.0,67924.0,0.07361144]
[1771651393708,0.0736034,67932.0,67924.0,0.07361144]
[1771651394147,0.0738021,67933.0,67924.0,0.07361144]
[1771651394431,0.07360314,67932.0,67924.0,0.07361144]
[1771651395479,0.07360487,67931.0,67922.0,0.07361357]
[1771651395698,0.07360631,67929.0,67922.0,8.61e-05]
[1771651395875,0.02476484,67929.0,67922.0,0.07369977]
[1771651396498,0.09837119,67929.0,67922.0,8.61e-05]
[1771651396677,0.10057832,67930.0,67920.0,0.00016]
[1771651396894,0.02476484,67925.0,67917.0,0.07361895]
[1771651397093,0.09837591,67925.0,67917.0,0.07357434]
[1771651397279,0.02476484,67925.0,67918.0,0.07361786]
[1771651398939,0.02476484,67925.0,67922.0,0.00022]
[1771651399233,0.02476484,67925.0,67922.0,0.00017539]
[1771651403546,0.09837367,67927.0,67922.0,0.00017539]
[1771651406408,0.09857367,67927.0,67922.0,0.00017539]
[1771651406991,0.02496484,67927.0,67922.0,0.00017539]
[1771651411077,0.0002,67927.0,67915.0,0.00022]
[1771651411280,0.09838056,67921.0,67911.0,0.0001231]
[1771651411919,0.02476484,67921.0,67913.0,0.07384287]
[1771651412721,0.02476484,67921.0,67914.0,0.07362244]
[1771651413722,0.02476484,67921.0,67915.0,0.00022]
[1771651414336,0.02476484,67921.0,67913.0,0.07384326]
[1771651415073,0.02476484,67921.0,67914.0,0.0736222]
[1771651419259,0.02476484,67921.0,67915.0,0.07332733]
[1771651421672,0.0002,67925.0,67915.0,0.02323626]
[1771651421897,0.00026884,67925.0,67915.0,0.02323626]
[1771651422206,0.00026884,67925.0,67920.0,0.09685147]
[1771651423751,0.00026884,67925.0,67921.0,0.07361493]
[1771651423962,0.00016,67930.0,67922.0,0.02323626]
[1771651424140,0.00016,67930.0,67922.0,0.09684908]
[1771651426520,0.0737652,67930.0,67922.0,0.09684908]
[1771651426739,0.0737652,67930.0,67922.0,0.07361282]
[1771651432584,0.0737652,67930.0,67922.0,0.0734658]
[1771651436185,0.00016,67930.0,67922.0,0.0734658]
[1771651437588,0.07376526,67930.0,67922.0,0.0734658]
[1771651441035,0.07376526,67930.0,67922.0,0.0736858]
[1771651441646,0.07380636,67929.0,67922.0,0.00022]
[1771651443345,0.07380636,67929.0,67918.0,0.07361723]
[1771651443346,0.0736092,67927.0,67918.0,0.07361723]
[1771651443557,0.0736092,67927.0,67918.0,0.07368607]
[1771651443747,0.07360977,67926.0,67918.0,0.07368607]
[1771651443970,0.07360977,67926.0,67918.0,0.073687]
[1771651444188,0.09784081,67926.0,67918.0,0.073687]
[1771651446388,0.0976304,67926.0,67918.0,0.073687]
[1771651447733,0.0976304,67926.0,67918.0,0.07375997]
[1771651449528,0.02423104,67926.0,67919.0,0.07361702]
[1771651449684,0.07360883,67927.0,67919.0,0.07361702]
[1771651451630,0.0002,67929.0,67921.0,0.07361414]
[1771651451831,0.07380634,67929.0,67921.0,0.07361414]
[1771651462133,0.07380634,67929.0,67921.0,0.07346712]
[1771651466984,0.07380634,67929.0,67918.0,0.00022]
[1771651466985,0.0736171,67919.0,67918.0,0.00022]
[1771651467200,0.02374813,67922.0,67910.0,0.07378649]
[1771651467399,0.07361585,67921.0,67912.0,0.07362462]
[1771651468422,0.07361585,67921.0,67914.0,0.00022]
[1771651469478,0.07365601,67921.0,67914.0,0.00022]
[1771651472243,0.07361632,67920.0,67914.0,0.00022]
[1771651475653,0.07361632,67920.0,67914.0,7.298e-05]
[1771651476652,0.07365531,67921.0,67914.0,7.298e-05]
[1771651481898,0.07385531,67921.0,67914.0,7.298e-05]
[1771651492246,0.07385531,67921.0,67913.0,0.0734025]
[1771651492446,0.07385531,67921.0,67913.0,0.07325547]
[1771651494801,0.07385531,67921.0,67913.0,0.07347547]
[1771651496169,0.00016,67930.0,67913.0,0.00022]
[1771651496374,0.00024017,67929.0,67919.0,0.02364612]
[1771651496601,0.07360914,67927.0,67919.0,0.02364612]
[1771651501176,0.07380914,67927.0,67919.0,0.02364612]
[1771651502379,0.07361138,67925.0,67919.0,0.02364612]
[1771651502735,0.07361138,67925.0,67915.0,0.09726678]
[1771651503441,0.07360951,67926.0,67916.0,0.07361959]
[1771651504056,0.07361141,67925.0,67916.0,0.07361959]
[1771651505343,0.29443931,67926.0,67913.0,0.07384329]
[1771651505502,0.07361467,67922.0,67914.0,0.07362173]
[1771651506953,0.07361504,67921.0,67913.0,0.07384342]
[1771651507155,0.07361504,67921.0,67913.0,0.00022]
[1771651507361,0.02266776,67922.0,67913.0,0.00022]
[1771651507558,0.10628513,67922.0,67913.0,0.00022]
[1771651507719,0.07361708,67920.0,67913.0,0.00022]
[1771651507923,0.07361708,67920.0,67908.0,0.00022]
[1771651507924,0.00016,67920.0,67908.0,0.00022]
[1771651508149,0.07362708,67910.0,67904.0,0.0003431]
[1771651509586,0.02388045,67912.0,67900.0,0.00038]
[1771651509790,0.02388045,67910.0,67900.0,0.00038]
[1771651509931,0.07363005,67909.0,67900.0,0.00038]
[1771651510346,0.07362902,67908.0,67900.0,0.00038]
[1771651511156,0.07363044,67907.0,67900.0,0.00038]
[1771651511632,0.02388045,67910.0,67897.0,0.0001231]
[1771651511633,0.00016,67910.0,67897.0,0.0001231]
[1771651511831,0.09751604,67902.0,67897.0,6.314e-05]
[1771651512001,0.09751604,67902.0,67893.0,0.00022]
[1771651512002,0.02388045,67902.0,67896.0,0.07365135]
[1771651512205,0.02388045,67902.0,67896.0,0.07373739]
[1771651512467,0.02388045,67902.0,67898.0,0.07363969]
[1771651512665,0.02388045,67906.0,67899.0,0.07363872]
[1771651513047,0.02388045,67906.0,67900.0,0.07363745]
[1771651513297,0.0736296,67908.0,67900.0,0.07363745]
[1771651513510,0.0736296,67908.0,67899.0,0.0736385]
[1771651513762,0.07363108,67907.0,67898.0,0.07363969]
[1771651513946,0.07363172,67906.0,67899.0,0.00022]
[1771651516263,0.07363311,67905.0,67899.0,0.00022]
[1771651516696,0.07363145,67906.0,67899.0,0.00022]
[1771651518052,0.00016,67910.0,67904.0,0.07363262]
[1771651518254,0.00016,67910.0,67900.0,0.11168206]
[1771651518255,0.00016,67910.0,67903.0,0.02376893]
[1771651518480,0.07362891,67909.0,67900.0,0.07363686]
[1771651518681,0.07378895,67910.0,67900.0,0.07363686]
[1771651518908,0.0976694,67910.0,67900.0,0.07363686]
[1771651519156,0.07362794,67909.0,67900.0,0.07363686]
[1771651521837,0.07362794,67909.0,67900.0,0.07385686]
[1771651522737,0.07362794,67909.0,67901.0,0.07363647]
[1771651528803,0.07362794,67909.0,67901.0,0.07385647]
[1771651529230,0.07362969,67908.0,67901.0,0.00022]
[1771651530481,0.07362794,67909.0,67901.0,0.00022]
[1771651531896,0.07363026,67907.0,67901.0,0.00022]
[1771651535917,0.07363147,67906.0,67901.0,0.00022]
[1771651536906,0.07363027,67907.0,67901.0,0.00022]
[1771651542569,0.07363149,67906.0,67901.0,0.00022]
[1771651543569,0.07363101,67908.0,67901.0,0.00022]
[1771651543753,0.07363019,67907.0,67901.0,0.00022]
[1771651547742,0.07363011,67907.0,67901.0,0.00022]
[1771651547915,0.07363136,67906.0,67901.0,0.00022]
[1771651548299,0.0002,67909.0,67901.0,0.00022]
[1771651548498,0.0002,67907.0,67901.0,0.00022]
[1771651548837,0.02494446,67906.0,67896.0,0.07373738]
[1771651549036,0.0985777,67905.0,67897.0,0.07364079]
[1771651549290,0.02494446,67905.0,67897.0,0.07364079]
[1771651549641,0.07363134,67906.0,67897.0,0.07364079]
[1771651550010,0.07363134,67906.0,67898.0,0.07363969]
[1771651550710,0.07383053,67907.0,67898.0,0.07363969]
[1771651551757,0.0002,67907.0,67896.0,0.07373716]
[1771651551962,0.0736343,67904.0,67896.0,0.07373727]
[1771651553614,0.07363236,67905.0,67897.0,0.07364078]
[1771651555020,0.07363236,67905.0,67898.0,0.00022]
[1771651559256,0.07363236,67905.0,67898.0,7.298e-05]
[1771651561233,0.02514446,67907.0,67898.0,7.298e-05]
[1771651561445,0.07364186,67897.0,67893.0,0.00022]
[1771651561790,0.07364491,67894.0,67888.0,0.00022]
[1771651561974,0.07364612,67893.0,67888.0,0.00022]
[1771651562189,0.29456534,67897.0,67887.0,0.00022]
[1771651562342,0.29456534,67897.0,67885.0,0.00022]
[1771651562343,0.0736527,67887.0,67885.0,0.00022]
[1771651562531,0.20862196,67900.0,67880.0,0.00016]
[1771651562532,0.07365301,67886.0,67880.0,0.00016]
[1771651562736,0.07364927,67890.0,67880.0,0.07387098]
[1771651562939,0.07364773,67891.0,67883.0,0.02348005]
[1771651563175,0.07364773,67891.0,67885.0,0.02348005]
[1771651563539,0.07364773,67891.0,67885.0,0.02333306]
[1771651563743,0.07364498,67894.0,67885.0,0.07365311]
[1771651563943,0.07364607,67893.0,67886.0,0.02333307]
[1771651564391,0.07364414,67895.0,67886.0,0.09698592]
[1771651564941,0.07364483,67894.0,67886.0,0.02333307]
[1771651565855,0.07364453,67894.0,67886.0,0.02333307]
[1771651568690,0.00016,67900.0,67885.0,0.02318614]
[1771651568904,0.0001231,67901.0,67893.0,0.02318614]
[1771651570126,0.07376007,67901.0,67893.0,0.02318614]
[1771651570713,0.07363786,67900.0,67893.0,0.02318614]
[1771651572586,0.0737599,67901.0,67893.0,0.02318614]
[1771651572787,0.0001231,67901.0,67893.0,0.02318614]
[1771651572985,0.0001231,67901.0,67892.0,0.07364613]
[1771651572986,0.0003231,67907.0,67897.0,0.07679637]
[1771651573189,0.07363137,67906.0,67898.0,0.02318614]
[1771651573832,0.07395423,67907.0,67899.0,0.02318614]
[1771651576307,0.07395423,67907.0,67899.0,0.02303915]
[1771651576590,0.0003231,67907.0,67899.0,0.02303915]
[1771651576789,0.07383121,67906.0,67899.0,0.02303915]
[1771651576921,0.0002,67909.0,67903.0,0.02318614]
[1771651578116,0.07421826,67909.0,67903.0,0.02318614]
[1771651578518,0.07362929,67908.0,67903.0,0.02318614]
[1771651580772,0.07362929,67908.0,67900.0,0.07363759]
[1771651580919,0.00058993,67909.0,67899.0,0.02318614]
[1771651581127,0.073632,67906.0,67897.0,0.07372251]
[1771651586720,0.073632,67906.0,67898.0,0.07363983]
[1771651588735,0.07363216,67907.0,67897.0,8.23e-05]
[1771651588957,0.07363216,67907.0,67899.0,0.07363848]
[1771651589157,0.07363119,67906.0,67897.0,0.07372123]
[1771651589767,0.07363119,67906.0,67898.0,0.00022]
[1771651590438,0.07363119,67906.0,67898.0,0.07385961]
[1771651591268,0.0002,67908.0,67891.0,0.00022]
[1771651591487,0.24049364,67901.0,67892.0,0.07364545]
[1771651591662,0.07363518,67903.0,67894.0,0.07364398]
[1771651591893,0.07363187,67906.0,67894.0,0.02318614]
[1771651592198,0.07363187,67906.0,67897.0,0.07364013]
[1771651593369,0.07363242,67905.0,67897.0,0.07364013]
[1771651594180,0.07363747,67901.0,67893.0,0.07364496]
[1771651594409,0.07363564,67902.0,67891.0,0.00022]
[1771651594696,0.07363564,67902.0,67893.0,0.07364453]
[1771651594891,0.07363564,67902.0,67892.0,0.07364552]
[1771651594892,0.07363697,67901.0,67892.0,0.07364552]
[1771651595101,0.07363697,67901.0,67892.0,0.09683166]
[1771651595619,0.07363662,67901.0,67893.0,0.07364423]
[1771651596564,0.07463662,67901.0,67897.0,0.00022]
[1771651596814,0.07363662,67901.0,67897.0,0.00022]
[1771651597867,0.07363564,67902.0,67897.0,0.00022]
[1771651597868,0.07363308,67905.0,67897.0,0.00022]
[1771651598070,0.07363366,67904.0,67897.0,0.00022]
[1771651598886,0.07363701,67901.0,67892.0,0.07364562]
[1771651600510,0.09698443,67901.0,67892.0,0.07364562]
[1771651600833,0.09698443,67901.0,67893.0,0.07364528]
[1771651602914,0.24049133,67903.0,67888.0,0.07364986]
[1771651602915,0.07364122,67897.0,67888.0,0.07364986]
[1771651603090,0.02334742,67896.0,67889.0,0.07364934]
[1771651603525,0.07364122,67897.0,67889.0,0.07364934]
[1771651603727,0.07364122,67897.0,67892.0,0.00022]
[1771651604544,0.07363878,67899.0,67892.0,0.00022]
[1771651604697,0.0969862,67899.0,67890.0,0.07364854]
[1771651606251,0.0969862,67899.0,67891.0,0.07364746]
[1771651609226,0.02334742,67899.0,67892.0,0.07364621]
[1771651609531,0.00016,67900.0,67896.0,0.07364127]
[1771651610322,0.00016,67900.0,67897.0,0.07364027]
[1771651610559,0.00016,67900.0,67899.0,0.07363878]
[1771651610800,0.00016,67900.0,67895.0,0.07364206]
[1771651611010,0.00016,67900.0,67897.0,0.07364036]
[1771651613235,0.00016,67900.0,67896.0,0.0736417]
[1771651617939,0.00036,67900.0,67896.0,0.0736417]
[1771651622233,0.00036,67900.0,67897.0,0.07364084]
[1771651622432,0.00036,67900.0,67896.0,0.14808336]
[1771651622611,0.0002,67908.0,67899.0,0.0736382]
[1771651622816,0.0002,67908.0,67901.0,0.07363589]
[1771651624324,0.0002,67908.0,67902.0,0.0736354]
[1771651624501,0.0002,67908.0,67896.0,0.09741605]
[1771651624735,0.0002,67908.0,67903.0,0.07363427]
[1771651629326,0.0002,67908.0,67903.0,0.07363408]
[1771651630225,0.0002,67908.0,67902.0,0.07363482]
[1771651630575,0.0002,67908.0,67902.0,0.07385482]
[1771651633053,0.0002,67908.0,67902.0,0.00022]
[1771651642999,0.0002,67908.0,67902.0,0.07385533]
[1771651645631,0.0002,67908.0,67902.0,0.00022]
[1771651645834,0.0002,67908.0,67902.0,0.07385551]
[1771651646583,0.0002,67908.0,67903.0,0.07363416]
[1771651647235,0.0002,67908.0,67904.0,0.07363274]
[1771651647416,0.0002,67908.0,67903.0,0.07363416]
[1771651648964,0.07363646,67902.0,67893.0,0.07364447]
[1771651649171,0.024513,67902.0,67894.0,0.07364404]
[1771651649481,0.024513,67902.0,67896.0,0.07364189]
[1771651649709,0.024513,67902.0,67895.0,0.07364286]
[1771651651555,0.024513,67902.0,67895.0,0.07386286]
[1771651653060,0.09814632,67906.0,67896.0,0.07364119]
[1771651653775,0.09814632,67906.0,67896.0,0.06969924]
[1771651653776,0.07363347,67904.0,67896.0,0.06969924]
[1771651656419,0.07363347,67904.0,67895.0,0.07386286]
[1771651658373,0.07363347,67904.0,67896.0,0.00022]
[1771651665382,0.07383347,67904.0,67896.0,0.00022]
[1771651665829,0.07363457,67903.0,67896.0,0.00022]
[1771651666023,0.07383367,67904.0,67896.0,0.00022]
[1771651670110,0.07383367,67904.0,67896.0,0.07386195]
[1771651674185,0.0002,67904.0,67897.0,0.07363992]
[1771651675602,0.07363154,67906.0,67899.0,0.07653731]
[1771651676280,0.07363307,67905.0,67899.0,0.07653731]
[1771651676664,0.0001408,67914.0,67900.0,0.09702792]
[1771651676887,0.07362545,67912.0,67905.0,0.07653731]
[1771651677095,0.0001408,67914.0,67906.0,0.02323131]
[1771651677301,0.07362588,67911.0,67906.0,0.02323131]
[1771651680822,0.0736236,67913.0,67906.0,0.02323131]
[1771651681041,0.0001408,67914.0,67906.0,0.02323131]
[1771651681610,0.07362543,67912.0,67906.0,0.02323131]
[1771651682918,0.07362629,67911.0,67906.0,0.02323131]
[1771651687886,0.07362691,67910.0,67906.0,0.02323131]
[1771651691262,0.07362691,67910.0,67906.0,0.02345131]
[1771651696849,0.07362691,67910.0,67906.0,0.02384124]
[1771651699454,0.00016,67920.0,67906.0,0.02384752]
[1771651699659,0.07362452,67914.0,67906.0,0.02384752]
[1771651699847,0.07362414,67913.0,67906.0,0.02384752]
[1771651704035,0.07382414,67913.0,67906.0,0.02384752]
[1771651705763,0.07363019,67907.0,67900.0,0.02339759]
[1771651705971,0.07402012,67907.0,67900.0,0.02339759]
[1771651706915,0.00038993,67907.0,67900.0,0.09703503]
[1771651710628,0.00038993,67907.0,67900.0,0.09725503]
[1771651712447,0.00038993,67907.0,67901.0,0.07363641]
[1771651717168,0.00038993,67907.0,67900.0,0.00038]
[1771651717381,0.00038993,67907.0,67900.0,0.07401766]
[1771651718155,0.00038993,67907.0,67901.0,0.00022]
[1771651718490,0.00038993,67907.0,67901.0,0.07385639]
[1771651724284,0.00038993,67907.0,67902.0,0.02363679]
[1771651724629,0.00038993,67907.0,67904.0,0.09726948]
[1771651725992,0.00038993,67907.0,67905.0,0.07363223]
[1771651726189,0.00038993,67907.0,67906.0,0.09726798]
[1771651726366,0.00038993,67907.0,67906.0,0.02363679]
[1771651726767,0.00038993,67907.0,67905.0,0.07363223]
[1771651734023,0.00058993,67907.0,67905.0,0.07363223]
[1771651737573,0.00058993,67907.0,67905.0,0.07358757]
[1771651739370,0.00058993,67907.0,67905.0,0.24994858]
[1771651739777,0.00058993,67907.0,67905.0,0.25094858]
[1771651740549,0.00058993,67907.0,67905.0,0.25016858]
[1771651741781,0.00058993,67907.0,67905.0,0.07380757]
[1771651742005,0.00058993,67907.0,67905.0,0.07480757]
[1771651742360,0.00058993,67907.0,67905.0,0.07380757]
[1771651745941,0.00058993,67907.0,67905.0,0.07376291]
[1771651751715,0.00058993,67907.0,67905.0,0.00022]
[1771651752830,0.00058993,67907.0,67901.0,0.00022]
[1771651754567,0.00058993,67907.0,67902.0,0.07363552]
[1771651755072,0.07435225,67907.0,67902.0,0.07363552]
[1771651761608,0.07435225,67907.0,67902.0,0.07385552]
[1771651762051,0.17638984,67940.0,67910.0,0.00016]
[1771651762257,0.07376232,67936.0,67920.0,0.00016]
[1771651762428,0.02325509,67935.0,67920.0,0.00016]
[1771651762675,0.04068602,67936.0,67930.0,0.07331053]
[1771651762880,0.04068602,67936.0,67929.0,0.07360626]
[1771651766209,0.04068602,67936.0,67930.0,0.07360507]
[1771651767869,0.04068602,67936.0,67929.0,0.07360604]
[1771651772617,0.04068602,67936.0,67930.0,0.0736051]
[1771651773004,0.04068602,67936.0,67930.0,0.07356044]
[1771651774825,0.04088602,67936.0,67930.0,0.07356044]
[1771651775295,0.04088602,67936.0,67929.0,0.07360592]
[1771651779688,0.04088602,67936.0,67929.0,0.07345906]
[1771651781214,0.04088602,67936.0,67929.0,0.07367906]
[1771651784113,0.0002,67936.0,67929.0,0.07367906]
[1771651792076,0.0002,67936.0,67929.0,0.0735322]
[1771651800356,0.0002,67936.0,67930.0,0.07360473]
[1771651800567,0.16852733,67940.0,67937.0,0.07359713]
[1771651800568,0.00020594,67940.0,67937.0,0.07359713]
[1771651800764,0.00020594,67940.0,67935.0,0.09772987]
[1771651800939,0.00020594,67940.0,67935.0,0.02413069]
[1771651803693,0.00020594,67940.0,67936.0,0.02413069]
[1771651804378,0.00020594,67940.0,67936.0,0.02398384]
[1771651805482,0.00020594,67940.0,67936.0,0.02383697]
[1771651806746,0.00040594,67940.0,67936.0,0.02383697]
[1771651811133,0.00040594,67940.0,67934.0,0.07360052]
[1771651811539,0.00040594,67940.0,67933.0,0.07360191]
[1771651812848,0.00040594,67940.0,67934.0,0.11724575]
[1771651813575,0.00040594,67940.0,67936.0,0.00022]
[1771651818506,0.14751816,67937.0,67929.0,0.00022]
[1771651818880,0.07392012,67937.0,67929.0,0.07382555]
[1771651819081,0.07392012,67937.0,67930.0,0.07360476]
[1771651820281,0.07392012,67937.0,67931.0,0.07360395]
[1771651820840,0.07392012,67937.0,67936.0,0.00022]
[1771651826461,0.14751621,67939.0,67936.0,0.00022]
[1771651831517,0.14751621,67939.0,67931.0,0.07360395]
[1771651831931,0.07392012,67939.0,67931.0,0.07360395]
[1771651833053,0.1475156,67939.0,67936.0,0.00022]
[1771651833368,0.1475156,67939.0,67931.0,0.07360395]
[1771651835264,0.07359548,67939.0,67931.0,0.07360395]
[1771651839592,0.07359548,67939.0,67931.0,0.07382395]
[1771651839741,0.0002,67939.0,67931.0,0.07382395]
[1771651840644,0.0002,67939.0,67932.0,0.07360283]
[1771651860286,0.0002,67939.0,67931.0,0.00022]
[1771651860488,0.0002,67939.0,67922.0,0.00022]
[1771651860489,0.07410546,67930.0,67922.0,0.00022]
[1771651860637,0.07410546,67930.0,67915.0,0.14802]
[1771651860638,0.07361362,67923.0,67915.0,0.00022]
[1771651860839,0.14771822,67923.0,67915.0,0.00022]
[1771651861609,0.0736146,67922.0,67915.0,0.00022]
[1771651861891,0.14771822,67923.0,67915.0,0.00022]
[1771651862079,0.14771822,67923.0,67918.0,0.00022]
[1771651866832,0.07410546,67923.0,67918.0,0.00022]
[1771651867057,0.09868115,67924.0,67918.0,0.00022]
[1771651871961,0.17229288,67924.0,67918.0,0.00022]
[1771651872747,0.09868115,67924.0,67918.0,0.00022]
[1771651876176,0.09888115,67924.0,67918.0,0.00022]
[1771651876326,0.17249292,67924.0,67918.0,0.00022]
[1771651883507,0.07360707,67929.0,67921.0,0.07361465]
[1771651883712,0.00016,67930.0,67919.0,0.09131986]
[1771651883900,0.07360214,67933.0,67925.0,0.07361019]
[1771651884329,0.07360214,67933.0,67924.0,0.07361131]
[1771651885308,0.07360172,67934.0,67924.0,0.07361131]
[1771651885309,0.07360306,67932.0,67924.0,0.07361131]
[1771651885819,0.07360509,67931.0,67922.0,0.07361356]
[1771651886235,0.07360509,67931.0,67923.0,0.07361271]
[1771651890119,0.07204756,67929.0,67918.0,0.00022]
[1771651890329,0.09863364,67921.0,67918.0,0.00022]
[1771651891055,0.07361285,67923.0,67918.0,0.00022]
[1771651891227,0.172294,67923.0,67918.0,0.00022]
[1771651894328,0.09868115,67923.0,67918.0,0.00022]
[1771651894932,0.17229474,67923.0,67918.0,0.00022]
[1771651895289,0.07361405,67922.0,67918.0,0.00022]
[1771651895923,0.07361499,67921.0,67918.0,0.00022]
[1771651896456,0.09868115,67923.0,67918.0,0.00022]
[1771651896958,0.07361389,67922.0,67918.0,0.00022]
[1771651898538,0.07361315,67923.0,67918.0,0.00022]
[1771651898876,0.17229431,67923.0,67918.0,0.00022]
[1771651900539,0.07361397,67922.0,67918.0,0.00022]
[1771651900747,0.09868116,67923.0,67918.0,0.00022]
[1771651901148,0.17229432,67923.0,67918.0,0.00022]
[1771651905543,0.07362464,67913.0,67901.0,0.0003439]
[1771651905690,0.07362574,67913.0,67901.0,0.0003439]
[1771651905894,0.07362574,67913.0,67904.0,0.07385315]
[1771651906422,0.07362574,67913.0,67905.0,0.07363202]
[1771651906628,0.07362574,67913.0,67904.0,0.07385315]
[1771651907171,0.07362466,67914.0,67905.0,0.07363185]
[1771651907636,0.07362376,67913.0,67905.0,0.07363185]
[1771651908193,0.07362258,67914.0,67906.0,0.07363113]
[1771651908594,0.17230295,67915.0,67906.0,0.07363113]
[1771651909450,0.07362263,67914.0,67906.0,0.07363113]
[1771651911239,0.07362263,67914.0,67905.0,0.07363209]
[1771651912125,0.07362263,67914.0,67906.0,0.07363117]
[1771651912293,0.07362263,67914.0,67906.0,0.07385117]
[1771651915627,0.07362323,67914.0,67906.0,0.00022]
[1771651915830,0.07362371,67913.0,67906.0,0.00022]
[1771651916028,0.07362278,67914.0,67906.0,0.00022]
[1771651917769,0.07362278,67914.0,67906.0,0.07385118]
[1771651918398,0.07362278,67914.0,67906.0,0.00022]
[1771651918528,0.07362278,67914.0,67906.0,0.07385117]
[1771651918729,0.17230472,67915.0,67906.0,0.00022]
[1771651918930,0.07362336,67914.0,67906.0,0.00022]
[1771651919141,0.07382336,67914.0,67906.0,0.07385115]
[1771651920259,0.07382336,67914.0,67906.0,0.00022]
[1771651920614,0.07382336,67914.0,67906.0,0.07385119]
[1771651922799,0.172305,67913.0,67906.0,0.00022]
[1771651923001,0.09868116,67913.0,67906.0,0.00022]
[1771651923186,0.09868116,67913.0,67906.0,0.07385075]
[1771651923374,0.09868116,67913.0,67906.0,0.00022]
[1771651923941,0.17230477,67913.0,67906.0,0.00022]
[1771651925553,0.09868116,67913.0,67906.0,0.00022]
[1771651926693,0.09879806,67913.0,67906.0,0.00022]
[1771651927579,0.09879806,67913.0,67906.0,0.07385074]
[1771651928555,0.0001169,67913.0,67907.0,0.07362939]
[1771651928755,0.07362072,67916.0,67907.0,0.07362939]
[1771651929623,0.07362072,67916.0,67908.0,0.07362851]
[1771651931665,0.0002,67913.0,67908.0,0.07362851]
[1771651934196,0.0002,67913.0,67907.0,0.07362939]
[1771651934404,0.0002,67913.0,67906.0,0.07385103]
[1771651934609,0.00030328,67913.0,67907.0,0.0736298]
[1771651939549,0.00030328,67913.0,67906.0,0.00022]
[1771651939755,0.00030328,67913.0,67906.0,0.07385033]
[1771651941156,0.00030328,67913.0,67910.0,0.01]
[1771651944303,0.00030328,67913.0,67910.0,0.00985315]
[1771651946655,0.22104781,67916.0,67910.0,0.00985315]
[1771651946820,0.07362235,67916.0,67910.0,0.00985315]
[1771651947400,0.22104906,67917.0,67910.0,0.00985315]
[1771651947590,0.14742972,67916.0,67910.0,0.00985315]
[1771651947788,0.07361934,67917.0,67910.0,0.00985315]
[1771651947992,0.22105215,67917.0,67910.0,0.00985315]
[1771651949645,0.14743281,67917.0,67910.0,0.00985315]
[1771651949842,0.07361806,67919.0,67910.0,0.08347893]
[1771651950047,0.07361847,67918.0,67910.0,0.08347893]
[1771651951257,0.07381847,67918.0,67910.0,0.08347893]
[1771651951918,0.07381847,67918.0,67910.0,0.00985315]
[1771651952118,0.22124873,67918.0,67910.0,0.00985315]
[1771651952327,0.07362011,67917.0,67910.0,0.00985315]
[1771651963829,0.07362011,67917.0,67910.0,0.01007315]
[1771651964090,0.07382011,67917.0,67910.0,0.01007315]
[1771651976886,0.07382011,67917.0,67910.0,0.0096327]
[1771651977487,0.07382011,67917.0,67910.0,0.00948591]
[1771651978282,0.07382011,67917.0,67910.0,0.00933909]
[1771651979733,0.2212551,67917.0,67910.0,0.00933909]
[1771651980790,0.02240553,67917.0,67910.0,0.00933909]
[1771651981007,0.0002,67918.0,67910.0,0.00933909]
[1771651981008,0.00016,67920.0,67910.0,0.00933909]
[1771651981288,0.07361741,67919.0,67911.0,0.07362577]
[1771651981468,0.07361741,67919.0,67910.0,0.08296398]
[1771651982023,0.09673819,67919.0,67906.0,0.00022]
[1771651982152,0.09673819,67914.0,67906.0,0.0003369]
[1771651982556,0.09673819,67913.0,67906.0,0.07396777]
[1771651982763,0.09673819,67913.0,67906.0,0.0003369]
[1771651983171,0.16118551,67913.0,67910.0,0.00022]
[1771651983398,0.09868117,67912.0,67910.0,0.00022]
[1771651990489,0.09868117,67912.0,67910.0,7.322e-05]
[1771651992481,0.09868117,67912.0,67906.0,0.07389448]
[1771651994306,0.07381952,67917.0,67909.0,0.07362794]
[1771651995275,0.0002,67917.0,67909.0,0.07362794]
[1771651995470,0.07381939,67917.0,67909.0,0.07362794]
[1771651996115,0.07381939,67917.0,67910.0,0.00022]
[1771651996316,0.0002,67917.0,67910.0,0.07369994]
[1771651996940,0.0002,67912.0,67910.0,0.07355319]
[1771651998556,0.0002,67912.0,67910.0,0.07328512]
[1771652003275,0.0002,67912.0,67910.0,0.07350512]
[1771652006031,0.0002,67912.0,67910.0,0.07346044]
[1771652006924,0.0002,67912.0,67908.0,0.05937539]
[1771652008182,0.0002,67912.0,67906.0,0.00026331]
[1771652008390,0.09888084,67912.0,67906.0,0.00026331]
[1771652008597,0.09868084,67910.0,67906.0,0.00026331]
[1771652009590,0.0002,67912.0,67906.0,0.00026331]
[1771652009816,0.0002,67912.0,67910.0,0.00022]
[1771652015433,0.00016,67920.0,67910.0,0.00022]
[1771652016236,0.0002,67912.0,67910.0,0.00022]
[1771652019721,0.0002,67912.0,67910.0,0.00017532]
[1771652027438,0.0002,67912.0,67910.0,0.00013064]
[1771652028712,0.0002,67912.0,67907.0,0.07362817]
[1771652028878,0.07382557,67912.0,67906.0,0.00026331]
[1771652029079,0.0986811,67911.0,67906.0,0.00026331]
[1771652030876,0.0002,67912.0,67906.0,0.00026331]
[1771652031040,0.07362125,67916.0,67907.0,0.07362909]
[1771652032270,0.07362233,67915.0,67907.0,0.07363003]
[1771652035818,0.07382233,67915.0,67907.0,0.07363003]
[1771652040200,0.01855177,67922.0,67913.0,0.07362252]
[1771652040644,0.0312117,67923.0,67914.0,0.0736216]
[1771652040645,0.10482455,67923.0,67914.0,0.0736216]
[1771652040851,0.0312117,67923.0,67917.0,0.07361883]
[1771652042179,0.0312117,67923.0,67916.0,0.07362]
[1771652042527,0.0002,67922.0,67916.0,0.07362]
[1771652044369,0.0002,67924.0,67916.0,0.07362]
[1771652044370,1e-08,67930.0,67928.0,0.07360655]
[1771652044727,0.07359687,67938.0,67929.0,0.07360621]